{"text_format":"1","workbook":"xlsx","n_sheets":5,"sheets":["Ülesanded","Uudised","Kaader","Sheet1","Abi"],"not_rendered":{"charts":0,"images":0,"macros":1,"external_links":1,"defined_names":10,"comments":0,"pivot_tables":0},"unopened":[],"bounds":{"document_bytes":16777216,"sheet_cells":100000,"rows_first":2000,"rows_last":500,"rows_between":2000,"halvings":0,"cell_chars":16384,"cell_head_chars":4096},"cells_cut":0,"cells_raw":0,"read":"whole","date_system":"1900"}

{"sheet":"Ülesanded","index":0,"n_rows":0,"n_cols":0,"rows_kept":0,"cut":false,"hidden":false,"merged":[]}

{"sheet":"Uudised","index":1,"n_rows":119,"n_cols":5,"rows_kept":119,"cut":false,"hidden":false,"merged":[]}
["Aeg","Uudis",null,null,"2024-10-16"]
["23:42:00","Selver x TalTech pääses CEV-i karikasarjas edasi"]
["23:07:00","Terras: Ungaris vaikselt mureneb ja ühel päeval leitakse demokraatlik lahendus",null,"Uudis"]
["23:06:00","Tallinnast on saamas Euroopa spordipealinn",null,"*kell*"]
["22:39:00","Tartu alustas eurosarja kolm-null võiduga"]
["21:54:00","ETV spordisaade, 16. oktoober",null,"Uudis"]
["21:53:00","Ilm püsib päikeseline, tuul tõuseb",null,"Aktuaalne kaamera kell 21:00"]
["21:51:00","Aktuaalne kaamera kell 21:00",null,"Aktuaalne kaamera kell 18:30"]
["21:40:00","Viipekeelsed uudised",null,"Aktuaalne kaamera kell 17:00"]
["21:27:00","Aiandusagronoom soovitab aiast lehed kindlasti ära koristada",null,"Kell 21.40 \"Esimeses stuudios\" Brüsseli debatt"]
["21:18:00","Opositsiooni hinnangul on riigieelarve läbipaistmatu",null,"ERR-i teleuudised kell 9:00"]
["21:11:00","Pärnu Sadam ei võitnud eurosarjas ka esimest kodumängu",null,"ERR-i teleuudised kell 7:00"]
["21:11:00","ERR Ukrainas: kodumaa eest võitlevad meeste kõrval ka naised",null,"Otse kell 12: riigikogu infotunnis Läänemets, Hartman, Sikkut"]
["20:55:00","\"Pealtnägija\": doktor Noormann 40 aastat hiljem"]
["20:38:00","Õhkrelvast kuuli pähe saanud mehe juhtumi uurimine on tupikus"]
["20:29:00","Amazon ostab osaluse tuumaenergeetikat arendavas firmas X-energy"]
["20:14:00","Aktuaalne kaamera kell 18:30"]
["20:11:00","Kalev/Cramo sai eurosarjas suure võõrsilvõidu"]
["20:05:00","Vaiko Eplik: Betti Alver oli geenius"]
["19:51:00","Dorothea Wierer jätkamisest: see polnud lihtne otsus"]
["19:35:00","\"Ringvaate\" stuudiosse jõudis Eesti kõige kallim elava kunstniku maal"]
["19:33:00","Rutte: NATO kaitseministrid arutavad Zelenski võiduplaani sel nädalal"]
["19:06:00","Prokuratuur näeb välismaalastest kurjategijate varem vabastamises probleeme"]
["19:05:00","Hollase ja Remmelga eliitturniiri debüüt lõppes kaotusega"]
["18:54:00","Briti valitsus kavatseb kaalulangetusravimi toel tõsta tööhõivet"]
["18:50:00","Skulptor Allmägi ja maalikunstnik Piile avasid Tartu Kunstimajas ühisnäituse \"Sümbioos\""]
["18:49:00","ERSO \"Romantika\" kontserdisarja avab Peeter Vähi teose \"Blue Collage\" esmaettekanne"]
["18:47:00","Prantsusmaal tulevad jääle Eesti iluuisutipud"]
["18:44:00","Eesti saatkond avas Washingtonis ettevõtluskeskuse"]
["18:40:00","Päevakaja (16.10.2024 18:00:00)"]
["18:40:00","Ekspertide hinnangul ei taha Põhja-Korea palju sõdureid Venemaa eest sõtta saata"]
["18:40:00","Nordica peab leidma lahenduse tööta lennukite probleemile"]
["18:20:00","Aktuaalne kaamera kell 17:00"]
["18:13:00","Gerardo's Toys/Neemeco liikus kindla võiduga veerandfinaali"]
["17:33:00","Malõgina sai aasta ühe magusama võidu"]
["17:15:00","\"Kultuuristuudio. Arutelu\" küsib, kuidas jagada raha teatrite vahel õiglaselt"]
["17:00:00","NHL-is nähti väravavahi tabamust"]
["16:57:00","Kohus tegi Lemberi ja PRIA vaidluses vaheotsuse"]
["16:52:00","Apollo võtab üle Eesti viimase Forum Cinemas kino Viljandis"]
["16:48:00","Kapo: sideandmete pikale säilitamisele head alternatiivi pole"]
["16:48:00","Eesti Naislaulu Seltsi esinaine: kummutame müüti, et naislaul on vaid \"kiremine\""]
["16:35:00","Eesti treener juhendas Soome noortekoondise suurturniiri lävele"]
["16:27:00","EL-i riigid võivad rändepoliitika karmistamisel pöörata pilgu Assadi poole"]
["16:17:00","\"Pealtnägija\": kolm investeerimispettuse ohvrit räägivad oma loo"]
["16:15:00","Eesti sangpommisportlased korjasid MM-il kamaluga medaleid"]
["15:57:00","Riigikogu tunnistas krimmitatarlaste suurküüditamise genotsiidiks"]
["15:35:00","Eesti teine reket lõpetas pika kaotusteseeria"]
["15:30:00","Mitmed väliskapitalile kuuluvad kaubanduskeskused pannakse müüki"]
["15:30:00","Eesti toetab Euroopa Liidu rändereeglite karmistamist"]
["15:30:00","Ida-Virumaal hakatakse uurima keemiatööstuse mõju elanike tervisele"]
["15:25:00","Kapo peab sideandmetega tutvumise võimalust oluliseks"]
["15:20:00","Raadiouudised (16.10.2024 15:00:00)"]
["15:03:00","Uue telemaja ehitushankele tegi parima pakkumuse Nordecon AS"]
["14:56:00","USA future jazz kollektiiv Sungazer esineb taas Tallinnas"]
["14:56:00","Zelenski avaldas viiest punktist koosneva võiduplaani"]
["14:55:00","Tarmo Tamm hakkab üleminekufondist saadud toetuse abil puidutööstust rajama"]
["14:49:00","Mehhiko sai üle viie aasta taas USA-st jagu, Pochettino palub kannatust"]
["14:45:00","Kell 21.40 \"Esimeses stuudios\" Brüsseli debatt"]
["14:30:00","CNN: Iisraelil valmis plaan Iraani rünnakule vastamiseks"]
["14:25:00","Oliver Laas: asjad, seadmed ja nende parandamine"]
["14:25:00","Taaramäe lõpetas Hiinas ka teise etapi peagrupis"]
["14:20:00","Musk andis Trumpi kampaaniale 75 miljonit dollarit"]
["14:19:00","Kõige olulisem infoallikas on Eesti uudisteportaalid"]
["14:19:00","Usaldus riigikogu ja valitsuse vastu langes oluliselt"]
["14:05:00","Ilm püsib selge, öösel muutuvad teed libedaks"]
["13:55:00","Holstre saab pärimuste matkaraja"]
["13:55:00","Rootsi tõstab kaitsekulusid 2,6 protsenti SKT-st"]
["13:54:00","Andra Teede: \"Õnne 13\" Alma ja Laine ei vanane mitte kunagi"]
["13:47:00","Koduse korvpalliliiga tulevikutäht on ilmselt liitumas Kalev/Cramoga"]
["13:40:00","Zuga tantsijate uuslavastus \"Ilma\" kutsub üles positiivsele aktivismile"]
["13:33:00","Helikunsti- ja muusikafestival Üle Heli seob tänavu kokku heli ja kujutluse"]
["13:13:00","Eva Sepping filmist \"Rändajad\": tahtsin näidata elu Siberis võimalikultilusana"]
["13:09:00","Noored Eesti ratturid liituvad värskelt loodud Belgia tiimiga"]
["12:53:00","Akkermann: mõne ministeeriumi kärped on eelarves veel sisustamata"]
["12:47:00","Eesti parim naiste rannavolleduo teeb debüüdi kõrgeima taseme turniiril"]
["12:33:00","Hasso Krull: poliitikutel on võimalus midagi tegemata jätta, siis ei peaka hiljem kahetsema"]
["12:26:00","Arst: viirushooaeg on alanud, haigestumine kogub hoogu"]
["12:25:00","Raadiouudised (16.10.2024 12:00:00)"]
["12:18:00","Põlva Serviti alustab nädalavahetusel Hollandis eurohooaega"]
["12:08:00","Õpetaja läbipõlemisest: oma murega ei tohi jääda üksi"]
["12:04:00","Hiiumaa vald taotleb Suuremõisa lossi võõrandamist"]
["12:04:00","Ilm on täna päikeseline"]
["12:04:00","Sidefirmad ähvardavad üle vaadata sideandmete säilitamise tähtajad"]
["12:04:00","Raadiouudised (16.10.2024 09:00:00)"]
["11:51:00","Selgus tiitlikaitsja Eesti koosseis naiste Balti turniiriks"]
["11:38:00","Ka kiirelt kasvavad kuused võivad anda head ehituspuitu"]
["11:37:00","Deodorant pakub õhusaastes sudule konkurentsi"]
["11:28:00","Rahvusvaheline Energiaagentuur: maailm on elektriajastu lävel"]
["11:16:00","Eesti kurlingu segavõistkond alistas MM-il Austria esinduse"]
["11:06:00","Kaisa Selde: olen tajunud küll emaks saamise survet"]
["10:50:00","Kolmekäeline robotdirigent tegi inimestele tuule alla"]
["10:43:00","37-aastane Colombia rattalegend tahab saada jalgpalluriks"]
["10:38:00","Hõimupäevadel tuulutatakse muusika- ja teatriakadeemias Soome rahvarõivaid"]
["10:37:00","Retseptiravimite miinimumhind tõuseb tuleval aastal euro võrra"]
["10:21:00","PÖFF-il jõuab esmakordselt Eesti vaatajate ette Anna Hintsi lühifilm \"Pimeala\""]
["09:59:00","Inglismaa jalgpallikoondist hakkab esimest korda juhendama sakslane"]
["09:49:00","ERR-i teleuudised kell 9:00"]
["09:47:00","Andrus Kaarelson: kuhu \"julgeolekumaksu\" raha tegelikult läheb"]
["09:38:00","FT: EL ei loobu 2035. aastaks seatud bensiinimootoriga uute autode müügikeelust"]
["09:32:00","Kindel võit viis Hispaania Rahvuste liigas kaheksa parema sekka"]
["09:25:00","Gert Raudsep: me ei ole siin selleks, et tekki ainult enda peale tõmmata"]
["09:11:00","Tarmo Kurves: kogukonna toetuse kaudu tõuseb sotsiaalteenuste kvaliteet"]
["08:55:00","20/20 filmifestival võtab luubi alla draamat täis tummfilmid"]
["08:49:00","ERR-i teleuudised kell 7:00"]
["08:46:00","Messi säras valikmängus kübaratriki ja kahe väravasööduga"]
["08:33:00","Harris esitas majandusplaani mustanahaliste meeste toetuseks"]
["08:33:00","Eesti lasteraamatud valiti taas maailma parimate hulka"]
["08:14:00","Võrkpallikarikavõistlused algavad Võru klubide duelliga"]
["08:06:00","Sveta Grigorjeva: ma ei usu, et ma radikaalsust taga otsin"]
["07:49:00","Kantar Emor: Balti riikide elanikud eelistavad USA presidendina Harrist"]
["07:35:00","Australopiteekidel olid nüüdisinimlikud töömehekäed"]
["07:03:00","EL püüab tippkohtumisega veenda laheriike Venemaad isoleerima"]
["07:00:00","Otse kell 12: riigikogu infotunnis Läänemets, Hartman, Sikkut"]
["06:57:00","Riigieelarve eelnõu läbis riigikogus esimese lugemise"]
["06:44:00","Norstat: Keskerakond langes reitingutabelis neljandaks"]
["06:26:00","Hiiumaal kaalutakse Suuremõisa lossi munitsipaalomandisse taotlemist"]
["06:18:00","Läti on valdava osa piiritarast Venemaaga valmis saanud"]
["06:18:00","Ettevõtted: ärilistel eesmärkidel säilitaksime vähem sideandmeid"]
["05:46:00","Sõja 966. päev: Biden teatas uuest abipaketist Ukrainale"]

{"sheet":"Kaader","index":2,"n_rows":102,"n_cols":10,"rows_kept":102,"cut":false,"hidden":false,"merged":[]}
[]
[]
[null,"Nimi","Sugu","Sünniaeg","Kuu jnr","Kuu nimetus","Vanus","Osakond","Amet","Palk"]
[null,"Jaan Laubre","mees","1988-01-16",{"$f":"MONTH(D4)","v":1},{"$f":"PROPER(TEXT(D4,\"mmmm\"))","v":"Jaanuar"},{"$f":"INT((TODAY()-D4)/365.25)","v":36},"Finants","raamatupidaja",1450]
[null,"Evi Sarapik","naine","1958-01-06",{"$f":"MONTH(D5)","v":1},{"$f":"PROPER(TEXT(D5,\"mmmm\"))","v":"Jaanuar"},{"$f":"INT((TODAY()-D5)/365.25)","v":66},"Finants","raamatupidaja",1200]
[null,"Jaan Noormets","mees","1993-01-07",{"$f":"MONTH(D6)","v":1},{"$f":"PROPER(TEXT(D6,\"mmmm\"))","v":"Jaanuar"},{"$f":"INT((TODAY()-D6)/365.25)","v":31},"Müük","diiler",1220]
[null,"Leida Jaanus","naine","1955-01-15",{"$f":"MONTH(D7)","v":1},{"$f":"PROPER(TEXT(D7,\"mmmm\"))","v":"Jaanuar"},{"$f":"INT((TODAY()-D7)/365.25)","v":69},"Tootmine","tööline",1010]
[null,"Malle Põldmaa","naine","1975-01-06",{"$f":"MONTH(D8)","v":1},{"$f":"PROPER(TEXT(D8,\"mmmm\"))","v":"Jaanuar"},{"$f":"INT((TODAY()-D8)/365.25)","v":49},"Tootmine","tööline",1250]
[null,"Hanno Pedak","mees","1981-01-24",{"$f":"MONTH(D9)","v":1},{"$f":"PROPER(TEXT(D9,\"mmmm\"))","v":"Jaanuar"},{"$f":"INT((TODAY()-D9)/365.25)","v":43},"Transport","autojuht",1500]
[null,"Malle Kivioja","naine","1981-02-03",{"$f":"MONTH(D10)","v":2},{"$f":"PROPER(TEXT(D10,\"mmmm\"))","v":"Veebruar"},{"$f":"INT((TODAY()-D10)/365.25)","v":43},"Finants","juhataja",2200]
[null,"Erki Arsenov","mees","1959-02-12",{"$f":"MONTH(D11)","v":2},{"$f":"PROPER(TEXT(D11,\"mmmm\"))","v":"Veebruar"},{"$f":"INT((TODAY()-D11)/365.25)","v":65},"Ladu","komplekteerija",930]
[null,"Einar Laanepõld","mees","1972-02-12",{"$f":"MONTH(D12)","v":2},{"$f":"PROPER(TEXT(D12,\"mmmm\"))","v":"Veebruar"},{"$f":"INT((TODAY()-D12)/365.25)","v":52},"Ladu","tööline",950]
[null,"Anton Meister","mees","1955-02-08",{"$f":"MONTH(D13)","v":2},{"$f":"PROPER(TEXT(D13,\"mmmm\"))","v":"Veebruar"},{"$f":"INT((TODAY()-D13)/365.25)","v":69},"Ladu","juhataja",1080]
[null,"Madis Paulus","mees","1985-02-21",{"$f":"MONTH(D14)","v":2},{"$f":"PROPER(TEXT(D14,\"mmmm\"))","v":"Veebruar"},{"$f":"INT((TODAY()-D14)/365.25)","v":39},"Tootmine","tööline",1110]
[null,"Irma Piirsalu","naine","1987-02-13",{"$f":"MONTH(D15)","v":2},{"$f":"PROPER(TEXT(D15,\"mmmm\"))","v":"Veebruar"},{"$f":"INT((TODAY()-D15)/365.25)","v":37},"Tootmine","tööline",1220]
[null,"Arnold Merilaid","mees","1966-02-22",{"$f":"MONTH(D16)","v":2},{"$f":"PROPER(TEXT(D16,\"mmmm\"))","v":"Veebruar"},{"$f":"INT((TODAY()-D16)/365.25)","v":58},"Transport","autojuht",1160]
[null,"Ando Nõmmik","mees","1989-02-20",{"$f":"MONTH(D17)","v":2},{"$f":"PROPER(TEXT(D17,\"mmmm\"))","v":"Veebruar"},{"$f":"INT((TODAY()-D17)/365.25)","v":35},"Transport","autojuht",1370]
[null,"Selma Parre","naine","1979-03-20",{"$f":"MONTH(D18)","v":3},{"$f":"PROPER(TEXT(D18,\"mmmm\"))","v":"Märts"},{"$f":"INT((TODAY()-D18)/365.25)","v":45},"Ladu","tööline",1250]
[null,"Laine Eek","naine","1993-03-11",{"$f":"MONTH(D19)","v":3},{"$f":"PROPER(TEXT(D19,\"mmmm\"))","v":"Märts"},{"$f":"INT((TODAY()-D19)/365.25)","v":31},"Majandus","sekretär",1120]
[null,"Annika Paju","naine","1991-03-18",{"$f":"MONTH(D20)","v":3},{"$f":"PROPER(TEXT(D20,\"mmmm\"))","v":"Märts"},{"$f":"INT((TODAY()-D20)/365.25)","v":33},"Majandus","sekretär",1310]
[null,"Helen Aigro","naine","1997-03-03",{"$f":"MONTH(D21)","v":3},{"$f":"PROPER(TEXT(D21,\"mmmm\"))","v":"Märts"},{"$f":"INT((TODAY()-D21)/365.25)","v":27},"Müük","sekretär",970]
[null,"Jana Kaal","naine","1980-03-18",{"$f":"MONTH(D22)","v":3},{"$f":"PROPER(TEXT(D22,\"mmmm\"))","v":"Märts"},{"$f":"INT((TODAY()-D22)/365.25)","v":44},"Müük","sekretär",1250]
[null,"Tarmo Müller","mees","1979-03-05",{"$f":"MONTH(D23)","v":3},{"$f":"PROPER(TEXT(D23,\"mmmm\"))","v":"Märts"},{"$f":"INT((TODAY()-D23)/365.25)","v":45},"Müük","müügijuht",1400]
[null,"Aare Raudsepp","mees","1991-03-01",{"$f":"MONTH(D24)","v":3},{"$f":"PROPER(TEXT(D24,\"mmmm\"))","v":"Märts"},{"$f":"INT((TODAY()-D24)/365.25)","v":33},"Müük","diiler",1150]
[null,"Juulia Tubin","naine","1964-03-02",{"$f":"MONTH(D25)","v":3},{"$f":"PROPER(TEXT(D25,\"mmmm\"))","v":"Märts"},{"$f":"INT((TODAY()-D25)/365.25)","v":60},"Müük","sekretär",1180]
[null,"Aigi Härm","naine","1980-03-22",{"$f":"MONTH(D26)","v":3},{"$f":"PROPER(TEXT(D26,\"mmmm\"))","v":"Märts"},{"$f":"INT((TODAY()-D26)/365.25)","v":44},"Ost","sekretär",930]
[null,"Aadu Heinlo","mees","1992-03-27",{"$f":"MONTH(D27)","v":3},{"$f":"PROPER(TEXT(D27,\"mmmm\"))","v":"Märts"},{"$f":"INT((TODAY()-D27)/365.25)","v":32},"Tootmine","lukksepp",1080]
[null,"Andrus Koort","mees","1972-03-05",{"$f":"MONTH(D28)","v":3},{"$f":"PROPER(TEXT(D28,\"mmmm\"))","v":"Märts"},{"$f":"INT((TODAY()-D28)/365.25)","v":52},"Tootmine","treial",1110]
[null,"Margus Maasalu","mees","1962-03-04",{"$f":"MONTH(D29)","v":3},{"$f":"PROPER(TEXT(D29,\"mmmm\"))","v":"Märts"},{"$f":"INT((TODAY()-D29)/365.25)","v":62},"Tootmine","tööline",2300]
[null,"Madis Maasalu","mees","1955-03-11",{"$f":"MONTH(D30)","v":3},{"$f":"PROPER(TEXT(D30,\"mmmm\"))","v":"Märts"},{"$f":"INT((TODAY()-D30)/365.25)","v":69},"Tootmine","tööline",1320]
[null,"Hanno Pajusaar","mees","1990-03-27",{"$f":"MONTH(D31)","v":3},{"$f":"PROPER(TEXT(D31,\"mmmm\"))","v":"Märts"},{"$f":"INT((TODAY()-D31)/365.25)","v":34},"Tootmine","tööline",1390]
[null,"Boris Küünemäe","mees","1987-03-13",{"$f":"MONTH(D32)","v":3},{"$f":"PROPER(TEXT(D32,\"mmmm\"))","v":"Märts"},{"$f":"INT((TODAY()-D32)/365.25)","v":37},"Transport","autojuht",1220]
[null,"Aadu Malva","mees","1970-03-06",{"$f":"MONTH(D33)","v":3},{"$f":"PROPER(TEXT(D33,\"mmmm\"))","v":"Märts"},{"$f":"INT((TODAY()-D33)/365.25)","v":54},"Transport","autojuht",1400]
[null,"Kristiina Oks","naine","1970-03-15",{"$f":"MONTH(D34)","v":3},{"$f":"PROPER(TEXT(D34,\"mmmm\"))","v":"Märts"},{"$f":"INT((TODAY()-D34)/365.25)","v":54},"Transport","dispetser",1150]
[null,"Faina Lepp","naine","1982-04-01",{"$f":"MONTH(D35)","v":4},{"$f":"PROPER(TEXT(D35,\"mmmm\"))","v":"Aprill"},{"$f":"INT((TODAY()-D35)/365.25)","v":42},"Finants","jurist",1450]
[null,"Airi Põld","naine","1969-04-10",{"$f":"MONTH(D36)","v":4},{"$f":"PROPER(TEXT(D36,\"mmmm\"))","v":"Aprill"},{"$f":"INT((TODAY()-D36)/365.25)","v":55},"Ladu","komplekteerija",1370]
[null,"Karl Salu","mees","1960-04-19",{"$f":"MONTH(D37)","v":4},{"$f":"PROPER(TEXT(D37,\"mmmm\"))","v":"Aprill"},{"$f":"INT((TODAY()-D37)/365.25)","v":64},"Ladu","dispetser",1100]
[null,"Erika Bachmann","naine","1983-04-07",{"$f":"MONTH(D38)","v":4},{"$f":"PROPER(TEXT(D38,\"mmmm\"))","v":"Aprill"},{"$f":"INT((TODAY()-D38)/365.25)","v":41},"Müük","müügijuht",1100]
[null,"Ene Elmik","naine","1983-04-24",{"$f":"MONTH(D39)","v":4},{"$f":"PROPER(TEXT(D39,\"mmmm\"))","v":"Aprill"},{"$f":"INT((TODAY()-D39)/365.25)","v":41},"Müük","müügijuht",1290]
[null,"Kristjan Mägi","mees","1989-04-16",{"$f":"MONTH(D40)","v":4},{"$f":"PROPER(TEXT(D40,\"mmmm\"))","v":"Aprill"},{"$f":"INT((TODAY()-D40)/365.25)","v":35},"Müük","diiler",920]
[null,"Reijo Okspuu","mees","1992-04-15",{"$f":"MONTH(D41)","v":4},{"$f":"PROPER(TEXT(D41,\"mmmm\"))","v":"Aprill"},{"$f":"INT((TODAY()-D41)/365.25)","v":32},"Müük","diiler",1310]
[null,"Einar Ehala","mees","1954-04-24",{"$f":"MONTH(D42)","v":4},{"$f":"PROPER(TEXT(D42,\"mmmm\"))","v":"Aprill"},{"$f":"INT((TODAY()-D42)/365.25)","v":70},"Tootmine","treial",1100]
[null,"Aadu Elson","mees","1973-04-09",{"$f":"MONTH(D43)","v":4},{"$f":"PROPER(TEXT(D43,\"mmmm\"))","v":"Aprill"},{"$f":"INT((TODAY()-D43)/365.25)","v":51},"Tootmine","tööline",1120]
[null,"Marko Erikson","mees","1953-04-06",{"$f":"MONTH(D44)","v":4},{"$f":"PROPER(TEXT(D44,\"mmmm\"))","v":"Aprill"},{"$f":"INT((TODAY()-D44)/365.25)","v":71},"Tootmine","meister",850]
[null,"Elvi Berk","naine","1983-04-06",{"$f":"MONTH(D45)","v":4},{"$f":"PROPER(TEXT(D45,\"mmmm\"))","v":"Aprill"},{"$f":"INT((TODAY()-D45)/365.25)","v":41},"Transport","dispetser",1170]
[null,"Kristel Astok","naine","1969-05-09",{"$f":"MONTH(D46)","v":5},{"$f":"PROPER(TEXT(D46,\"mmmm\"))","v":"Mai"},{"$f":"INT((TODAY()-D46)/365.25)","v":55},"Finants","raamatupidaja",1390]
[null,"Vilma Eesmaa","naine","1985-05-28",{"$f":"MONTH(D47)","v":5},{"$f":"PROPER(TEXT(D47,\"mmmm\"))","v":"Mai"},{"$f":"INT((TODAY()-D47)/365.25)","v":39},"Finants","raamatupidaja",1150]
[null,"Sirje Härm","naine","1955-05-14",{"$f":"MONTH(D48)","v":5},{"$f":"PROPER(TEXT(D48,\"mmmm\"))","v":"Mai"},{"$f":"INT((TODAY()-D48)/365.25)","v":69},"Ost","sekretär",1460]
[null,"Erna Eek","naine","1990-05-24",{"$f":"MONTH(D49)","v":5},{"$f":"PROPER(TEXT(D49,\"mmmm\"))","v":"Mai"},{"$f":"INT((TODAY()-D49)/365.25)","v":34},"Tootmine","tööline",1210]
[null,"Argo Salu","mees","1960-05-29",{"$f":"MONTH(D50)","v":5},{"$f":"PROPER(TEXT(D50,\"mmmm\"))","v":"Mai"},{"$f":"INT((TODAY()-D50)/365.25)","v":64},"Tootmine","tööline",1220]
[null,"Tiina Rajamäe","naine","1983-05-16",{"$f":"MONTH(D51)","v":5},{"$f":"PROPER(TEXT(D51,\"mmmm\"))","v":"Mai"},{"$f":"INT((TODAY()-D51)/365.25)","v":41},"Transport","dispetser",1450]
[null,"Margus Roosimägi","mees","1983-05-21",{"$f":"MONTH(D52)","v":5},{"$f":"PROPER(TEXT(D52,\"mmmm\"))","v":"Mai"},{"$f":"INT((TODAY()-D52)/365.25)","v":41},"Transport","autojuht",1120]
[null,"Aasa Randla","naine","1952-06-15",{"$f":"MONTH(D53)","v":6},{"$f":"PROPER(TEXT(D53,\"mmmm\"))","v":"Juuni"},{"$f":"INT((TODAY()-D53)/365.25)","v":72},"Majandus","koristaja",1020]
[null,"Arnold Norak","mees","1990-06-29",{"$f":"MONTH(D54)","v":6},{"$f":"PROPER(TEXT(D54,\"mmmm\"))","v":"Juuni"},{"$f":"INT((TODAY()-D54)/365.25)","v":34},"Tootmine","tööline",1090]
[null,"Eevald Parts","mees","1988-06-17",{"$f":"MONTH(D55)","v":6},{"$f":"PROPER(TEXT(D55,\"mmmm\"))","v":"Juuni"},{"$f":"INT((TODAY()-D55)/365.25)","v":36},"Tootmine","lukksepp",1200]
[null,"Kaspar Veesimaa","mees","1965-06-11",{"$f":"MONTH(D56)","v":6},{"$f":"PROPER(TEXT(D56,\"mmmm\"))","v":"Juuni"},{"$f":"INT((TODAY()-D56)/365.25)","v":59},"Tootmine","tööline",1160]
[null,"Paul Naaber","mees","1977-06-21",{"$f":"MONTH(D57)","v":6},{"$f":"PROPER(TEXT(D57,\"mmmm\"))","v":"Juuni"},{"$f":"INT((TODAY()-D57)/365.25)","v":47},"Transport","autojuht",1020]
[null,"Tiina Markus","naine","1992-07-01",{"$f":"MONTH(D58)","v":7},{"$f":"PROPER(TEXT(D58,\"mmmm\"))","v":"Juuli"},{"$f":"INT((TODAY()-D58)/365.25)","v":32},"Ladu","tööline",1450]
[null,"Tiina Toomsalu","naine","1957-07-22",{"$f":"MONTH(D59)","v":7},{"$f":"PROPER(TEXT(D59,\"mmmm\"))","v":"Juuli"},{"$f":"INT((TODAY()-D59)/365.25)","v":67},"Majandus","koristaja",1520]
[null,"Kersti Miller","naine","1991-07-23",{"$f":"MONTH(D60)","v":7},{"$f":"PROPER(TEXT(D60,\"mmmm\"))","v":"Juuli"},{"$f":"INT((TODAY()-D60)/365.25)","v":33},"Tootmine","tööline",1350]
[null,"Ahti Tubin","mees","1970-07-06",{"$f":"MONTH(D61)","v":7},{"$f":"PROPER(TEXT(D61,\"mmmm\"))","v":"Juuli"},{"$f":"INT((TODAY()-D61)/365.25)","v":54},"Tootmine","treial",780]
[null,"Aarne Oks","mees","1961-07-14",{"$f":"MONTH(D62)","v":7},{"$f":"PROPER(TEXT(D62,\"mmmm\"))","v":"Juuli"},{"$f":"INT((TODAY()-D62)/365.25)","v":63},"Transport","autojuht",2240]
[null,"Ene Burmeister","naine","1982-08-21",{"$f":"MONTH(D63)","v":8},{"$f":"PROPER(TEXT(D63,\"mmmm\"))","v":"August"},{"$f":"INT((TODAY()-D63)/365.25)","v":42},"Finants","raamatupidaja",1150]
[null,"Mare Eesmaa","naine","1984-08-16",{"$f":"MONTH(D64)","v":8},{"$f":"PROPER(TEXT(D64,\"mmmm\"))","v":"August"},{"$f":"INT((TODAY()-D64)/365.25)","v":40},"Majandus","juhataja",1150]
[null,"Evelin Põld","naine","1970-08-21",{"$f":"MONTH(D65)","v":8},{"$f":"PROPER(TEXT(D65,\"mmmm\"))","v":"August"},{"$f":"INT((TODAY()-D65)/365.25)","v":54},"Majandus","sekretär",1260]
[null,"Faina Kukk","naine","1992-08-29",{"$f":"MONTH(D66)","v":8},{"$f":"PROPER(TEXT(D66,\"mmmm\"))","v":"August"},{"$f":"INT((TODAY()-D66)/365.25)","v":32},"Müük","sekretär",1180]
[null,"Kristjan Jürimäe","mees","1981-08-04",{"$f":"MONTH(D67)","v":8},{"$f":"PROPER(TEXT(D67,\"mmmm\"))","v":"August"},{"$f":"INT((TODAY()-D67)/365.25)","v":43},"Tootmine","lukksepp",1320]
[null,"Ahto Danilov","mees","1979-08-25",{"$f":"MONTH(D68)","v":8},{"$f":"PROPER(TEXT(D68,\"mmmm\"))","v":"August"},{"$f":"INT((TODAY()-D68)/365.25)","v":45},"Transport","autojuht",1280]
[null,"Mirja Bergmann","naine","1953-09-11",{"$f":"MONTH(D69)","v":9},{"$f":"PROPER(TEXT(D69,\"mmmm\"))","v":"September"},{"$f":"INT((TODAY()-D69)/365.25)","v":71},"Majandus","koristaja",1130]
[null,"Aarne Mikson","mees","1984-09-01",{"$f":"MONTH(D70)","v":9},{"$f":"PROPER(TEXT(D70,\"mmmm\"))","v":"September"},{"$f":"INT((TODAY()-D70)/365.25)","v":40},"Ost","juhataja",1160]
[null,"Valve Mäesalu","naine","1970-09-01",{"$f":"MONTH(D71)","v":9},{"$f":"PROPER(TEXT(D71,\"mmmm\"))","v":"September"},{"$f":"INT((TODAY()-D71)/365.25)","v":54},"Ost","sekretär",2780]
[null,"Hendrik Kanter","mees","1954-09-01",{"$f":"MONTH(D72)","v":9},{"$f":"PROPER(TEXT(D72,\"mmmm\"))","v":"September"},{"$f":"INT((TODAY()-D72)/365.25)","v":70},"Tootmine","juhataja",1250]
[null,"Riho Kuusk","mees","1952-09-14",{"$f":"MONTH(D73)","v":9},{"$f":"PROPER(TEXT(D73,\"mmmm\"))","v":"September"},{"$f":"INT((TODAY()-D73)/365.25)","v":72},"Tootmine","tööline",2290]
[null,"Aare Marmor","mees","1957-09-23",{"$f":"MONTH(D74)","v":9},{"$f":"PROPER(TEXT(D74,\"mmmm\"))","v":"September"},{"$f":"INT((TODAY()-D74)/365.25)","v":67},"Tootmine","meister",1090]
[null,"Kaivo Mets","mees","1973-09-01",{"$f":"MONTH(D75)","v":9},{"$f":"PROPER(TEXT(D75,\"mmmm\"))","v":"September"},{"$f":"INT((TODAY()-D75)/365.25)","v":51},"Tootmine","meister",1420]
[null,"Reijo Muld","mees","1981-09-24",{"$f":"MONTH(D76)","v":9},{"$f":"PROPER(TEXT(D76,\"mmmm\"))","v":"September"},{"$f":"INT((TODAY()-D76)/365.25)","v":43},"Tootmine","tööline",1000]
[null,"Meelis Petrov","mees","1992-09-21",{"$f":"MONTH(D77)","v":9},{"$f":"PROPER(TEXT(D77,\"mmmm\"))","v":"September"},{"$f":"INT((TODAY()-D77)/365.25)","v":32},"Tootmine","tööline",1070]
[null,"Malle Ligi","naine","1967-10-03",{"$f":"MONTH(D78)","v":10},{"$f":"PROPER(TEXT(D78,\"mmmm\"))","v":"Oktoober"},{"$f":"INT((TODAY()-D78)/365.25)","v":57},"Finants","jurist",1170]
[null,"Katy Veesimaa","naine","1975-10-17",{"$f":"MONTH(D79)","v":10},{"$f":"PROPER(TEXT(D79,\"mmmm\"))","v":"Oktoober"},{"$f":"INT((TODAY()-D79)/365.25)","v":49},"Finants","referent",1360]
[null,"Kaivo Berk","mees","1955-10-19",{"$f":"MONTH(D80)","v":10},{"$f":"PROPER(TEXT(D80,\"mmmm\"))","v":"Oktoober"},{"$f":"INT((TODAY()-D80)/365.25)","v":69},"Ladu","tööline",1960]
[null,"Reijo Bauman","mees","1965-10-04",{"$f":"MONTH(D81)","v":10},{"$f":"PROPER(TEXT(D81,\"mmmm\"))","v":"Oktoober"},{"$f":"INT((TODAY()-D81)/365.25)","v":59},"Tootmine","tööline",1170]
[null,"Olav Berk","mees","1950-10-04",{"$f":"MONTH(D82)","v":10},{"$f":"PROPER(TEXT(D82,\"mmmm\"))","v":"Oktoober"},{"$f":"INT((TODAY()-D82)/365.25)","v":74},"Tootmine","tööline",930]
[null,"Erki Lepiksoo","mees","1981-10-31",{"$f":"MONTH(D83)","v":10},{"$f":"PROPER(TEXT(D83,\"mmmm\"))","v":"Oktoober"},{"$f":"INT((TODAY()-D83)/365.25)","v":42},"Tootmine","treial",1200]
[null,"Reijo Müürsepp","mees","1962-10-11",{"$f":"MONTH(D84)","v":10},{"$f":"PROPER(TEXT(D84,\"mmmm\"))","v":"Oktoober"},{"$f":"INT((TODAY()-D84)/365.25)","v":62},"Tootmine","lukksepp",1200]
[null,"Arvi Väljas","mees","1976-10-05",{"$f":"MONTH(D85)","v":10},{"$f":"PROPER(TEXT(D85,\"mmmm\"))","v":"Oktoober"},{"$f":"INT((TODAY()-D85)/365.25)","v":48},"Tootmine","tööline",1090]
[null,"Aadu Pulk","mees","1953-10-16",{"$f":"MONTH(D86)","v":10},{"$f":"PROPER(TEXT(D86,\"mmmm\"))","v":"Oktoober"},{"$f":"INT((TODAY()-D86)/365.25)","v":71},"Transport","valvur",960]
[null,"Meelis Kalju","mees","1992-11-16",{"$f":"MONTH(D87)","v":11},{"$f":"PROPER(TEXT(D87,\"mmmm\"))","v":"November"},{"$f":"INT((TODAY()-D87)/365.25)","v":31},"Ladu","tööline",1160]
[null,"Erika Kasemets","naine","1997-11-26",{"$f":"MONTH(D88)","v":11},{"$f":"PROPER(TEXT(D88,\"mmmm\"))","v":"November"},{"$f":"INT((TODAY()-D88)/365.25)","v":26},"Müük","sekretär",1240]
[null,"Hilja Raid","naine","1987-11-03",{"$f":"MONTH(D89)","v":11},{"$f":"PROPER(TEXT(D89,\"mmmm\"))","v":"November"},{"$f":"INT((TODAY()-D89)/365.25)","v":36},"Müük","sekretär",1250]
[null,"Maarja Ambros","naine","1977-11-13",{"$f":"MONTH(D90)","v":11},{"$f":"PROPER(TEXT(D90,\"mmmm\"))","v":"November"},{"$f":"INT((TODAY()-D90)/365.25)","v":46},"Ost","sekretär",1240]
[null,"Erki Ainsaar","mees","1975-11-12",{"$f":"MONTH(D91)","v":11},{"$f":"PROPER(TEXT(D91,\"mmmm\"))","v":"November"},{"$f":"INT((TODAY()-D91)/365.25)","v":48},"Tootmine","lukksepp",2420]
[null,"Heli Lind","naine","1981-11-11",{"$f":"MONTH(D92)","v":11},{"$f":"PROPER(TEXT(D92,\"mmmm\"))","v":"November"},{"$f":"INT((TODAY()-D92)/365.25)","v":42},"Tootmine","tööline",1190]
[null,"Raivo Lokk","mees","1991-11-15",{"$f":"MONTH(D93)","v":11},{"$f":"PROPER(TEXT(D93,\"mmmm\"))","v":"November"},{"$f":"INT((TODAY()-D93)/365.25)","v":32},"Tootmine","tööline",1390]
[null,"Eino Luige","mees","1962-11-16",{"$f":"MONTH(D94)","v":11},{"$f":"PROPER(TEXT(D94,\"mmmm\"))","v":"November"},{"$f":"INT((TODAY()-D94)/365.25)","v":61},"Tootmine","tööline",900]
[null,"Kustav Salu","mees","1982-11-20",{"$f":"MONTH(D95)","v":11},{"$f":"PROPER(TEXT(D95,\"mmmm\"))","v":"November"},{"$f":"INT((TODAY()-D95)/365.25)","v":41},"Tootmine","tööline",1370]
[null,"Reijo Meigas","mees","1956-12-18",{"$f":"MONTH(D96)","v":12},{"$f":"PROPER(TEXT(D96,\"mmmm\"))","v":"Detsember"},{"$f":"INT((TODAY()-D96)/365.25)","v":67},"Ladu","tööline",1100]
[null,"Erno Salumets","mees","1981-12-17",{"$f":"MONTH(D97)","v":12},{"$f":"PROPER(TEXT(D97,\"mmmm\"))","v":"Detsember"},{"$f":"INT((TODAY()-D97)/365.25)","v":42},"Müük","juhataja",3000]
[null,"Karl Agur","mees","1994-12-21",{"$f":"MONTH(D98)","v":12},{"$f":"PROPER(TEXT(D98,\"mmmm\"))","v":"Detsember"},{"$f":"INT((TODAY()-D98)/365.25)","v":29},"Tootmine","tööline",1240]
[null,"Sirje Kreen","naine","1955-12-27",{"$f":"MONTH(D99)","v":12},{"$f":"PROPER(TEXT(D99,\"mmmm\"))","v":"Detsember"},{"$f":"INT((TODAY()-D99)/365.25)","v":68},"Tootmine","tööline",1060]
[null,"Aarne Norak","mees","1975-12-07",{"$f":"MONTH(D100)","v":12},{"$f":"PROPER(TEXT(D100,\"mmmm\"))","v":"Detsember"},{"$f":"INT((TODAY()-D100)/365.25)","v":48},"Tootmine","tööline",1575]
[null,"Priit Burmeister","mees","1992-12-16",{"$f":"MONTH(D101)","v":12},{"$f":"PROPER(TEXT(D101,\"mmmm\"))","v":"Detsember"},{"$f":"INT((TODAY()-D101)/365.25)","v":31},"Transport","autojuht",1320]
[null,"Jaan Kaasik","mees","1960-12-20",{"$f":"MONTH(D102)","v":12},{"$f":"PROPER(TEXT(D102,\"mmmm\"))","v":"Detsember"},{"$f":"INT((TODAY()-D102)/365.25)","v":63},"Transport","autojuht",1330]

{"sheet":"Sheet1","index":3,"n_rows":12,"n_cols":4,"rows_kept":12,"cut":false,"hidden":false,"merged":[]}
[]
[null,"Osakond","Amet"]
[null,"Müük","sekretär"]
[]
[]
[null,"Nimi","Sünniaeg","Palk"]
[null,"Helen Aigro","1997-03-03",970]
[null,"Jana Kaal","1980-03-18",1250]
[null,"Juulia Tubin","1964-03-02",1180]
[null,"Faina Kukk","1992-08-29",1180]
[null,"Erika Kasemets","1997-11-26",1240]
[null,"Hilja Raid","1987-11-03",1250]

{"sheet":"Abi","index":4,"n_rows":18,"n_cols":4,"rows_kept":18,"cut":false,"hidden":false,"merged":[]}
[]
[null,"Osakond",null,"Amet"]
[null,"Finants",null,"autojuht"]
[null,"Ladu",null,"diiler"]
[null,"Majandus",null,"dispetser"]
[null,"Müük",null,"juhataja"]
[null,"Ost",null,"jurist"]
[null,"Tootmine",null,"komplekteerija"]
[null,"Transport",null,"koristaja"]
[null,null,null,"lukksepp"]
[null,null,null,"meister"]
[null,null,null,"müügijuht"]
[null,null,null,"raamatupidaja"]
[null,null,null,"referent"]
[null,null,null,"sekretär"]
[null,null,null,"treial"]
[null,null,null,"tööline"]
[null,null,null,"valvur"]